bitfinex/quotes_SOLUSD_20260108
["timestamp","ask_amount","ask_price","bid_price","bid_amount"]
[1767838953378,0.68201578,137.88,137.84,5.77645113]
[1767838955699,0.68201578,137.88,137.83,13.03176564]
[1767838956394,0.70569811,137.87,137.83,5.77645113]
[1767838956598,0.70569811,137.86,137.82,5.77645113]
[1767838958007,7.2534478,137.87,137.83,5.77645113]
[1767838958189,0.70569811,137.87,137.82,7.25566176]
[1767838958382,0.70569811,137.87,137.83,5.77645113]
[1767838959125,0.70569811,137.86,137.82,5.77645113]
[1767838960579,0.70569811,137.86,137.81,13.03263127]
[1767838961824,0.70569811,137.85,137.81,13.03263127]
[1767838963093,0.70569811,137.84,137.8,5.77645113]
[1767838964219,0.70569811,137.83,137.79,13.03347976]
[1767838965918,0.70569811,137.82,137.78,13.17638046]
[1767838966120,0.70569811,137.82,137.77,7.25828832]
[1767838966322,0.70569811,137.82,137.78,5.77645113]
[1767838967197,0.70569811,137.82,137.77,7.25828832]
[1767838967198,0.70569811,137.81,137.77,7.25828832]
[1767838967401,0.70569811,137.8,137.76,5.77645113]
[1767838971929,0.70569811,137.8,137.76,13.03539465]
[1767838972633,0.70569811,137.8,137.76,9.41877814]
[1767838973129,0.70569811,137.8,137.76,2.15983462]
[1767838976115,7.96262491,137.8,137.77,0.14216157]
[1767838977117,7.96262491,137.8,137.75,7.25952813]
[1767838977118,0.70569811,137.79,137.75,7.25952813]
[1767838977424,0.70569811,137.77,137.72,2.15983462]
[1767838977625,0.70569811,137.76,137.71,7.26148909]
[1767838977813,0.70569811,137.76,137.72,9.42083575]
[1767838978014,0.70569811,137.76,137.73,0.14216157]
[1767838978215,0.70569811,137.76,137.72,7.26100113]
[1767838978433,0.70569811,137.76,137.73,0.14216157]
[1767838978627,0.70569811,137.76,137.71,9.42124275]
[1767838978931,0.70569811,137.76,137.72,0.42648471]
[1767838979133,0.70569811,137.76,137.72,7.68758568]
[1767838979813,0.70569811,137.76,137.72,9.8474203]
[1767838980008,0.67569812,137.76,137.72,9.8474203]
[1767838980234,29.04320954,137.87,137.75,2.58631933]
[1767838980528,2.15983462,137.8,137.75,0.14216157]
[1767838980731,2.15983462,137.8,137.74,2.20856497]
[1767838980732,2.15983462,137.79,137.74,0.47521506]
[1767838980935,2.15983462,137.79,137.74,0.42648471]
[1767838981740,22.65720182,137.8,137.74,7.68630753]
[1767838981916,2.15983462,137.79,137.74,7.68630753]
[1767838982116,0.71089718,137.78,137.74,7.68630753]
[1767838982718,0.71089718,137.78,137.74,0.42648471]
[1767838982916,0.71806868,137.77,137.74,0.42648471]
[1767838983112,0.71806868,137.77,137.74,7.68638955]
[1767838984535,13.95806868,137.8,137.74,25.88525784]
[1767838984738,13.95806868,137.8,137.75,2.20856497]
[1767838985241,0.71806868,137.82,137.78,0.28432314]
[1767838985430,0.71806868,137.82,137.78,0.42648471]
[1767838986042,0.71806868,137.82,137.78,7.68424081]
[1767838986533,22.65515803,137.83,137.78,7.68424081]
[1767838986534,0.71806868,137.81,137.78,7.68424081]
[1767838990926,0.71806868,137.78,137.7,7.31069982]
[1767838991135,3.37426105,137.75,137.7,7.31069982]
[1767838991633,3.37426105,137.75,137.71,0.42648471]
[1767838991828,3.37426105,137.76,137.7,7.31069982]
[1767838992242,10.63334623,137.76,137.71,0.42648471]
[1767838992752,3.37426105,137.75,137.71,0.42648471]
[1767838992944,3.37426105,137.75,137.7,7.31069982]
[1767838993248,4.09232973,137.75,137.71,7.68788479]
[1767838994349,0.71806868,137.73,137.68,19.01569514]
[1767838994529,4.03232974,137.73,137.69,7.26235666]
[1767838994847,3.37426105,137.72,137.68,8.12101592]
[1767838995250,3.37426105,137.72,137.69,0.14216157]
[1767838995429,3.37426105,137.72,137.68,8.12101592]
[1767838995629,13.24,137.74,137.69,0.14216157]
[1767838995832,3.37426105,137.73,137.69,0.14216157]
[1767838996333,3.37426105,137.72,137.69,0.14216157]
[1767838996535,4.09232973,137.72,137.69,0.14216157]
[1767838996742,3.37426105,137.76,137.69,0.14216157]
[1767838996743,0.71806868,137.83,137.77,0.65797171]
[1767838996949,0.71806868,137.83,137.79,0.14216157]
[1767838997853,0.71806868,137.83,137.79,7.39954808]
[1767838999848,0.71806868,137.82,137.79,0.14216157]
[1767839000429,0.71806868,137.88,137.85,0.14216157]
[1767839000651,0.71806868,137.88,137.84,0.94229485]
[1767839000856,0.71806868,137.88,137.84,0.28432314]
[1767839001835,0.71806868,137.88,137.82,28.19517669]
[1767839002037,0.71806868,137.88,137.83,0.28432314]
[1767839002256,17.36851121,137.88,137.83,7.53953865]
[1767839003065,0.71806868,137.87,137.83,7.25521551]
[1767839003248,16.65044253,137.88,137.8,31.40162373]
[1767839003249,0.71806868,137.86,137.8,0.65797171]
[1767839003454,0.71806868,137.85,137.8,0.65797171]
[1767839003660,0.71806868,137.85,137.8,10.05568546]
[1767839003963,0.71806868,137.85,137.81,7.25629586]
[1767839004736,0.71806868,137.83,137.79,0.42648471]
[1767839005152,0.71806868,137.83,137.79,0.28432314]
[1767839005460,0.71806868,137.83,137.79,7.54141638]
[1767839012743,0.71806868,137.83,137.79,8.24079707]
[1767839015555,10.11578243,137.83,137.79,8.24079707]
[1767839015957,0.71806868,137.83,137.79,8.24079707]
[1767839016761,0.71029586,137.82,137.78,0.69938069]
[1767839016968,16.65314234,137.83,137.76,7.25885187]
[1767839016969,10.10800961,137.8,137.76,7.25885187]
[1767839017174,0.71029586,137.79,137.76,7.25885187]
[1767839017465,7.25542859,137.83,137.73,7.95982063]
[1767839017466,0.71029586,137.77,137.73,7.95982063]
[1767839018366,6.6801107,137.87,137.75,7.25952813]
[1767839018565,0.71029586,137.83,137.78,10.09709444]
[1767839018755,0.71029586,137.82,137.78,8.24162935]
[1767839020665,7.96523489,137.84,137.79,7.95674513]
[1767839020857,17.36294864,137.84,137.79,7.95674513]
[1767839021059,0.71029586,137.83,137.79,7.95674513]
[1767839021457,0.71029586,137.79,137.72,7.40622164]
[1767839021658,0.71029586,137.79,137.74,0.69938069]
[1767839021659,13.24,137.78,137.74,0.69938069]
[1767839021853,9.39771375,137.77,137.74,0.69938069]
[1767839022058,13.95029586,137.78,137.74,0.69938069]
[1767839022258,23.34800961,137.78,137.74,0.69938069]
[1767839022578,0.71029586,137.77,137.72,0.69938069]
[1767839022783,10.10800961,137.76,137.72,0.69938069]
[1767839022955,0.71029586,137.76,137.72,0.98370383]
[1767839023269,0.71029586,137.76,137.71,7.40373089]
[1767839023270,0.71029586,137.76,137.71,7.26156932]
[1767839023572,0.71029586,137.75,137.71,7.26156932]
[1767839023875,0.71029586,137.75,137.71,1.1258654]
[1767839024084,0.71029586,137.75,137.71,0.69938069]
[1767839024754,7.97000466,137.75,137.69,7.96192287]
[1767839025077,0.71029586,137.74,137.7,0.98370383]
[1767839025278,10.10800961,137.74,137.7,0.69938069]
[1767839025452,9.39771375,137.73,137.68,8.16256067]
[1767839025653,0.71029586,137.72,137.68,7.46317998]
[1767839025880,0.68029587,137.72,137.68,8.16256067]
[1767839026059,0.68029587,137.72,137.69,0.28432314]
[1767839026259,0.68029587,137.72,137.69,7.68913516]
[1767839027267,13.24,137.73,137.69,7.68913516]
[1767839027857,13.95029586,137.73,137.69,7.68913516]
[1767839028476,23.34800961,137.73,137.69,0.42648471]
[1767839028681,10.10800961,137.73,137.69,0.42648471]
[1767839028983,13.95029586,137.73,137.69,0.42648471]
[1767839029169,13.95029586,137.73,137.69,7.68914442]
[1767839029556,13.24,137.73,137.69,0.42648471]
[1767839029762,0.71029586,137.72,137.69,0.42648471]
[1767839033102,13.24,137.73,137.69,8.38850807]
[1767839033260,13.95029586,137.73,137.69,8.38850807]
[1767839034165,23.34800961,137.73,137.69,8.38850807]
[1767839034672,30.60861384,137.73,137.69,1.1258654]
[1767839034885,29.89831798,137.73,137.68,8.16248339]
[1767839035086,0.71029586,137.72,137.68,8.16248339]
[1767839037589,13.97029586,137.72,137.68,8.16248339]
[1767839042698,24.61007542,137.72,137.68,0.89938069]
[1767839043090,0.6678091,137.68,137.65,0.2]
[1767839043299,0.6678091,137.68,137.64,7.26502832]
[1767839043300,3.37852398,137.68,137.64,7.26502832]
[1767839043499,16.63852398,137.69,137.64,7.26502832]
[1767839043684,25.41402932,137.72,137.64,7.26502832]
[1767839043685,3.37852398,137.68,137.64,7.26502832]
[1767839043886,16.63852398,137.68,137.64,7.26502832]
[1767839044101,13.26,137.68,137.64,7.26502832]
[1767839045187,0.6678091,137.67,137.64,7.26502832]
[1767839046015,0.6678091,137.67,137.63,7.26567696]
[1767839046400,16.63852398,137.68,137.6,0.2]
[1767839046401,4.04633308,137.64,137.6,0.2]
[1767839046598,3.37852398,137.61,137.6,0.2]
[1767839046794,3.34852394,137.61,137.58,0.85986539]
[1767839046998,3.37852398,137.59,137.58,0.2]
[1767839047206,4.04633308,137.6,137.58,0.2]
[1767839048594,10.09767747,137.6,137.58,0.2]
[1767839048990,10.09767747,137.6,137.54,0.2]
[1767839048991,0.46913258,137.58,137.54,0.2]
[1767839049190,0.46913258,137.58,137.52,0.65986539]
[1767839050016,9.42986837,137.56,137.52,0.65986539]
[1767839050205,0.46385987,137.54,137.51,0.2]
[1767839050408,9.42986837,137.52,137.51,0.00210169]
[1767839050599,13.26,137.53,137.51,0.00210169]
[1767839050803,13.26,137.53,137.5,0.65986539]
[1767839051514,22.68986837,137.53,137.5,0.65986539]
[1767839051695,0.37335915,137.52,137.49,0.2]
[1767839052308,17.07497981,137.52,137.49,0.2]
[1767839052502,0.10174359,137.51,137.46,7.93465761]
[1767839052708,19.2477887,137.53,137.47,0.65986539]
[1767839052910,19.2477887,137.53,137.48,0.14216157]
[1767839053108,0.099,137.52,137.48,0.14216157]
[1767839053307,0.099,137.52,137.45,23.99780367]
[1767839053308,0.099,137.52,137.45,7.93520603]
[1767839053509,5.81063052,137.46,137.42,0.65986539]
[1767839053713,5.81063052,137.46,137.4,4.4458982]
[1767839053714,13.43561056,137.46,137.4,4.4458982]
[1767839053924,0.17561056,137.46,137.4,0.65986539]
[1767839054109,5.81063052,137.43,137.4,0.65986539]
[1767839054309,13.26,137.45,137.4,0.65986539]
[1767839054709,13.26,137.45,137.36,0.65986539]
[1767839054710,5.81063052,137.42,137.36,0.65986539]
[1767839054916,5.81063052,137.41,137.36,0.65986539]
[1767839055095,5.81063052,137.4,137.36,0.65986539]
[1767839055422,0.66379623,137.41,137.36,0.65986539]
[1767839055614,5.81063052,137.39,137.36,0.65986539]
[1767839056896,5.81063052,137.37,137.36,0.65986539]
[1767839057117,0.6678091,137.36,137.28,18.209721]
[1767839057421,0.6678091,137.35,137.29,7.2838517]
[1767839057605,0.6678091,137.35,137.26,31.47338252]
[1767839057606,19.73843962,137.34,137.28,7.28424842]
[1767839057805,13.26,137.33,137.28,7.28424842]
[1767839058005,13.23000001,137.33,137.28,7.28424842]
[1767839058500,13.20000002,137.33,137.28,25.49520413]
[1767839059103,13.20000002,137.33,137.29,0.65986539]
[1767839059303,13.28,137.35,137.29,0.80202696]
[1767839059531,0.6678091,137.38,137.33,0.65986539]
[1767839059829,13.28,137.38,137.33,0.65986539]
[1767839060414,13.28,137.38,137.33,7.94129725]
[1767839061231,5.81063052,137.37,137.33,0.94418853]
[1767839061435,19.75843962,137.38,137.33,0.94418853]
[1767839061738,0.6678091,137.37,137.33,0.28432314]
[1767839062410,0.6678091,137.36,137.32,8.08423503]
[1767839063714,0.6678091,137.36,137.33,0.28432314]
[1767839064321,19.75843962,137.38,137.33,0.94418853]
[1767839064520,6.47843962,137.37,137.33,0.65986539]
[1767839065116,0.6678091,137.37,137.33,7.94152977]
[1767839065626,0.6678091,137.37,137.32,8.08413432]
[1767839065932,6.47843962,137.37,137.33,0.65986539]
[1767839066137,13.28,137.38,137.34,1.0863501]
[1767839067129,6.47843962,137.39,137.34,8.3675005]
[1767839067444,19.75843962,137.42,137.37,0.65986539]
[1767839067637,5.81063052,137.39,137.35,1.0863501]
[1767839067937,6.47843962,137.38,137.34,7.2811504]
[1767839068145,6.47843962,137.38,137.34,0.65986539]
[1767839068550,0.6678091,137.38,137.32,7.94205096]
[1767839068728,5.81063052,137.37,137.32,7.94205096]
[1767839068920,5.81063052,137.36,137.32,7.94205096]
[1767839069835,5.81063052,137.36,137.31,7.28267679]
[1767839069836,5.81063052,137.35,137.31,7.28267679]
[1767839070028,13.9478091,137.36,137.31,7.28267679]
[1767839070226,6.47843962,137.35,137.31,7.28267679]
[1767839070624,6.47843962,137.35,137.31,7.94254218]
[1767839071046,5.81063052,137.33,137.3,7.28317608]
[1767839071218,6.47843962,137.33,137.28,7.94382288]
[1767839071420,5.81063052,137.32,137.28,7.94382288]
[1767839071622,5.81063052,137.32,137.29,7.28380445]
[1767839071623,5.78063053,137.32,137.29,7.28380445]
[1767839071828,5.78063053,137.32,137.28,7.94406514]
[1767839072041,5.78063053,137.32,137.28,0.65986539]
[1767839072446,13.9478091,137.33,137.28,0.65986539]
[1767839072647,6.53187604,137.32,137.28,0.65986539]
[1767839073251,6.53187604,137.32,137.28,7.94418468]
[1767839073545,13.28,137.33,137.29,1.14506657]
[1767839073749,19.09063052,137.34,137.3,0.71858186]
[1767839074627,19.81187604,137.34,137.3,0.71858186]
[1767839075039,19.81187604,137.34,137.3,8.00142663]
[1767839075239,13.28,137.34,137.3,8.00142663]
[1767839075442,19.09063052,137.34,137.3,8.00142663]
[1767839076842,5.81063052,137.33,137.3,0.71858186]
[1767839077043,5.81063052,137.33,137.3,7.28328844]
[1767839077740,5.81063052,137.32,137.29,0.71858186]
[1767839078127,5.81063052,137.32,137.29,8.00242952]
[1767839078336,6.53187604,137.33,137.29,8.00242952]
[1767839078543,5.81063052,137.32,137.29,7.28384766]
[1767839078932,19.81187604,137.33,137.29,7.28384766]
[1767839081050,5.81063052,137.35,137.31,0.71858186]
[1767839081252,5.81063052,137.34,137.31,0.71858186]
[1767839081546,0.72124552,137.31,137.27,0.71858186]
[1767839081751,5.81063052,137.3,137.27,8.00347195]
[1767839081945,6.53187604,137.31,137.27,8.00347195]
[1767839082146,5.81063052,137.31,137.28,0.71858186]
[1767839082849,14.02124552,137.32,137.28,0.71858186]
[1767839083029,5.81063052,137.31,137.28,0.71858186]
[1767839083625,0.72124552,137.36,137.3,0.71858186]
[1767839083850,6.53187604,137.35,137.3,0.71858186]
[1767839084243,0.72124552,137.35,137.3,0.71858186]
[1767839084854,0.72124552,137.35,137.31,7.28279076]
[1767839085152,14.02124552,137.37,137.32,0.71858186]
[1767839085660,6.53187604,137.34,137.31,7.28279076]
[1767839085831,0.72124552,137.34,137.3,8.00169235]
[1767839086033,6.53187604,137.34,137.3,0.71858186]
[1767839086231,6.53187604,137.33,137.29,7.71022918]
[1767839086449,6.53187604,137.33,137.3,7.28320858]
[1767839086651,0.72124552,137.33,137.3,7.28320858]
[1767839086835,6.53187604,137.33,137.3,7.28320858]
[1767839087034,0.72124552,137.33,137.29,8.42874176]
[1767839087256,6.53187604,137.33,137.29,8.42874176]
[1767839087631,6.53187604,137.33,137.29,8.28658019]
[1767839088032,6.53187604,137.33,137.29,8.00225705]
[1767839088324,6.53187604,137.32,137.29,7.28367519]
[1767839090136,6.53187604,137.3,137.26,7.42728328]
[1767839090456,5.81063052,137.29,137.26,7.42728328]
[1767839090652,13.3,137.3,137.26,0.86074343]
[1767839090956,13.3,137.3,137.27,1.14506657]
[1767839091252,19.83187604,137.3,137.26,7.71140279]
[1767839091426,19.83187604,137.3,137.26,7.42707965]
[1767839092035,19.83187604,137.3,137.26,8.14566151]
[1767839092451,19.83187604,137.3,137.25,18.49912044]
[1767839092452,6.53187604,137.29,137.25,7.28575699]
[1767839093039,6.53187604,137.29,137.25,0.14216157]
[1767839093347,0.72124552,137.28,137.24,7.48614301]
[1767839093547,6.53187604,137.28,137.24,7.48614301]
[1767839094129,6.50187605,137.28,137.24,7.48614301]
[1767839094762,13.3,137.27,137.24,7.48614301]
[1767839095769,19.11063052,137.27,137.24,7.48614301]
[1767839096058,5.81063052,137.27,137.24,7.28638327]
[1767839096264,14.02124552,137.27,137.24,7.28638327]
[1767839096459,19.11063052,137.27,137.24,7.28638327]
[1767839096641,13.3,137.27,137.24,7.28638327]
[1767839097253,13.3,137.27,137.24,8.00496513]
[1767839097750,13.3,137.27,137.25,0.71858186]
[1767839098060,13.3,137.27,137.25,8.00415726]
[1767839098236,5.93006753,137.29,137.25,8.00415726]
[1767839098553,13.3,137.28,137.25,8.00415726]
[1767839098755,19.11063052,137.28,137.25,0.71858186]
[1767839098938,5.81063052,137.28,137.25,0.71858186]
[1767839099133,13.3,137.27,137.25,8.00452328]
[1767839099447,13.3,137.27,137.25,0.71858186]
[1767839099844,13.3,137.27,137.23,8.00540377]
[1767839100162,19.11063052,137.27,137.23,8.00540377]
[1767839100362,13.3,137.27,137.24,0.71858186]
[1767839100857,2.29600697,137.29,137.24,1.002905]
[1767839101044,13.3,137.28,137.24,1.002905]
[1767839101244,15.47656996,137.28,137.24,1.002905]
[1767839101447,2.17656996,137.28,137.24,1.002905]
[1767839101643,2.17656996,137.26,137.23,7.28682191]
[1767839101852,13.3,137.28,137.24,0.71858186]
[1767839102055,15.47656996,137.28,137.24,0.71858186]
[1767839102249,13.3,137.28,137.24,8.00459103]
[1767839102658,15.47656996,137.28,137.24,8.00459103]
[1767839103663,2.17656996,137.28,137.25,0.65920502]
[1767839103961,2.17656996,137.3,137.26,0.65920502]
[1767839104340,13.3,137.31,137.26,0.65920502]
[1767839104540,2.17656996,137.3,137.26,0.65920502]
[1767839105261,2.17656996,137.3,137.26,7.94423484]
[1767839106066,2.17656996,137.28,137.26,0.65920502]
[1767839106366,2.17656996,137.28,137.25,7.94498462]
[1767839106955,2.17656996,137.29,137.25,7.94498462]
[1767839107152,0.19199607,137.3,137.25,7.94498462]
[1767839107361,2.17656996,137.29,137.25,7.94498462]
[1767839107548,0.19199607,137.3,137.25,7.94498462]
[1767839107549,2.17656996,137.3,137.26,0.65920502]
[1767839108251,13.3,137.31,137.27,0.65920502]
[1767839108455,2.17656996,137.32,137.27,0.65920502]
[1767839109353,7.93335667,137.35,137.29,0.65920502]
[1767839109548,2.17656996,137.34,137.29,0.65920502]
[1767839110667,2.17656996,137.34,137.3,7.28332119]
[1767839110870,7.93328784,137.35,137.3,7.94252621]
[1767839111047,2.17656996,137.34,137.3,7.94252621]
[1767839112564,5.82538919,137.34,137.3,7.94252621]
[1767839113570,5.82538919,137.33,137.3,7.94252621]
[1767839114654,9.46748942,137.33,137.3,7.94252621]
[1767839114967,9.46748942,137.32,137.3,0.65920502]
[1767839115165,9.46748942,137.32,137.29,7.94283137]
[1767839116456,9.46748942,137.32,137.29,7.28362635]
[1767839116845,9.46748942,137.3,137.26,18.87207128]
[1767839117671,9.46748942,137.3,137.27,7.28467649]
[1767839118967,10.11088339,137.31,137.27,0.65920502]
[1767839119270,9.46748942,137.31,137.27,0.65920502]
[1767839119473,10.11544296,137.31,137.27,0.65920502]
[1767839119774,0.19199607,137.3,137.26,26.30041947]
[1767839120285,9.46748942,137.31,137.27,0.65920502]
[1767839120501,9.65487986,137.31,137.27,0.65920502]
[1767839121476,9.65487986,137.31,137.27,7.94405219]
[1767839123777,0.19199607,137.29,137.25,13.95920502]
[1767839123956,10.11088339,137.28,137.24,0.65920502]
[1767839124155,10.11088339,137.28,137.24,7.94541237]
[1767839124575,10.10641455,137.26,137.22,0.65920502]
[1767839124787,9.46748942,137.25,137.22,0.65920502]
[1767839125075,9.66842362,137.25,137.21,7.28793131]
[1767839125248,18.21070832,137.29,137.23,0.14216157]
[1767839125452,18.21070832,137.29,137.23,0.80136659]
[1767839125453,9.65487986,137.29,137.23,0.80136659]
[1767839126981,9.46748942,137.28,137.24,7.94571041]
[1767839127656,9.65487986,137.29,137.24,7.94571041]
[1767839129676,10.11544296,137.28,137.24,0.65920502]
[1767839129975,9.46748942,137.27,137.23,7.28693732]
[1767839130177,9.46748942,137.27,137.23,7.94614234]
[1767839130573,0.64339397,137.26,137.23,7.28693732]
[1767839130982,10.11088339,137.26,137.22,0.65920502]
[1767839131567,10.11088339,137.26,137.2,18.50565182]
[1767839131568,10.10641455,137.24,137.2,0.65920502]
[1767839131772,0.2009342,137.23,137.19,0.75920502]
[1767839132088,9.66842362,137.23,137.19,7.3890957]
[1767839132282,9.66842362,137.23,137.19,8.10465516]
[1767839132580,25.49721489,137.27,137.19,8.10465516]
[1767839132581,4.06617691,137.24,137.19,8.10465516]
[1767839133280,3.40346578,137.23,137.19,8.10465516]
[1767839133665,0.17738606,137.23,137.19,0.81555946]
[1767839133880,0.66271113,137.26,137.2,0.71555946]
[1767839134058,3.40346578,137.27,137.22,0.71555946]
[1767839134263,3.40346578,137.25,137.22,0.71555946]
[1767839134463,3.40346578,137.26,137.22,0.71555946]
[1767839134663,3.40346578,137.26,137.22,8.00288506]
[1767839134960,4.05656699,137.24,137.2,14.01555946]
[1767839135160,3.40346578,137.23,137.2,14.01555946]
[1767839135386,3.37346579,137.23,137.2,14.01555946]
[1767839135687,3.53036568,137.23,137.19,0.1]
[1767839135872,3.53036568,137.23,137.19,7.38915144]
[1767839136071,3.53036568,137.23,137.19,8.1047109]
[1767839137080,0.66271113,137.25,137.2,0.71555946]
[1767839137474,4.06617691,137.25,137.2,0.71555946]
[1767839138692,3.40346578,137.24,137.21,0.71555946]
[1767839139194,4.06617691,137.25,137.21,0.71555946]
[1767839140185,3.40346578,137.25,137.21,0.71555946]
[1767839140482,3.58085184,137.25,137.21,0.71555946]
[1767839141689,3.40346578,137.23,137.19,8.10454937]
[1767839141867,3.37346579,137.23,137.19,8.10454937]
[1767839142190,3.40346578,137.21,137.19,0.1]
[1767839143601,3.59036566,137.21,137.18,0.2]
[1767839143973,0.64188897,137.25,137.19,0.71555946]
[1767839144276,0.64188897,137.25,137.19,0.85772103]
[1767839144589,3.40346578,137.24,137.19,0.85772103]
[1767839144970,3.50246578,137.24,137.19,0.85772103]
[1767839145291,3.50246578,137.24,137.19,8.00451131]
[1767839145492,3.40346578,137.23,137.19,8.00451131]
[1767839146297,3.40346578,137.23,137.2,0.71555946]
[1767839146679,0.099,137.24,137.2,0.71555946]
[1767839146877,3.40346578,137.25,137.21,0.71555946]
[1767839147397,4.04535475,137.26,137.22,8.00312686]
[1767839148671,3.40346578,137.25,137.22,8.00312686]
[1767839149393,0.64188897,137.26,137.22,8.00312686]
[1767839149598,4.04535475,137.26,137.22,8.00312686]
[1767839149990,4.04535475,137.26,137.22,0.71555946]
[1767839149991,3.40346578,137.25,137.22,0.71555946]
[1767839150168,3.40346578,137.25,137.22,8.00310008]
[1767839150695,3.40346578,137.25,137.22,0.71555946]
[1767839150882,3.40346578,137.26,137.22,8.00288586]
[1767839151086,3.40346578,137.27,137.23,0.71555946]
[1767839151597,7.92084236,137.28,137.23,0.71555946]
[1767839151598,3.40346578,137.26,137.23,0.71555946]
[1767839152995,7.38938058,137.27,137.23,0.71555946]
[1767839153196,3.40346578,137.26,137.23,0.71555946]
[1767839153681,7.38938058,137.27,137.23,0.71555946]
[1767839153884,3.40346578,137.26,137.23,0.71555946]
[1767839155101,0.64188897,137.28,137.23,0.71555946]
[1767839155300,3.40346578,137.27,137.23,0.71555946]
[1767839155674,3.40346578,137.26,137.23,0.71555946]
[1767839159608,4.04535475,137.28,137.24,0.71555946]
[1767839159899,7.92641301,137.28,137.24,0.71555946]
[1767839160092,3.40346578,137.26,137.24,0.71555946]
[1767839162004,7.92641301,137.28,137.24,0.71555946]
[1767839162203,0.64188897,137.28,137.24,0.71555946]
[1767839162591,3.40346578,137.26,137.24,0.71555946]
[1767839162790,7.92637866,137.28,137.24,0.71555946]
[1767839163094,3.40346578,137.26,137.24,0.71555946]
[1767839163409,3.40346578,137.25,137.23,0.72407903]
[1767839163807,0.099,137.27,137.24,0.72407903]
[1767839163808,3.40346578,137.27,137.24,0.72407903]
[1767839164111,3.40346578,137.28,137.24,0.72407903]
[1767839165108,3.40346578,137.27,137.24,0.72407903]
[1767839165293,3.40346578,137.27,137.25,0.72407903]
[1767839165696,3.40346578,137.28,137.25,0.72407903]
[1767839166605,0.64188897,137.29,137.25,0.72407903]
[1767839166812,4.04535475,137.29,137.25,0.72407903]
[1767839167393,3.40346578,137.28,137.25,0.72407903]
[1767839168094,0.64188897,137.29,137.25,0.72407903]
[1767839168402,3.40346578,137.28,137.25,0.72407903]
[1767839168606,7.28332952,137.3,137.26,8.0094076]
[1767839168607,3.40346578,137.3,137.26,8.0094076]
[1767839168806,0.64188897,137.31,137.27,0.72407903]
[1767839168807,4.04535475,137.31,137.27,0.72407903]
[1767839169385,3.40346578,137.31,137.27,0.72407903]
[1767839169703,3.40346578,137.33,137.27,0.72407903]
[1767839169892,10.78427634,137.33,137.28,0.72407903]
[1767839170212,3.40346578,137.32,137.28,0.72407903]
[1767839170414,4.03992586,137.32,137.28,0.72407903]
[1767839170803,0.63646008,137.32,137.28,0.72407903]
[1767839171209,11.32716531,137.33,137.28,0.72407903]
[1767839171720,4.04535475,137.33,137.29,0.72407903]
[1767839172105,0.64188897,137.33,137.29,0.72407903]
[1767839172413,4.04535475,137.33,137.29,0.72407903]
[1767839173118,0.64188897,137.33,137.29,0.72407903]
[1767839173292,13.3,137.35,137.3,0.72407903]
[1767839173492,3.40346578,137.34,137.3,0.72407903]
[1767839173694,4.04535475,137.35,137.3,0.72407903]
[1767839174306,0.64188897,137.35,137.3,0.72407903]
[1767839174494,2.81617676,137.35,137.3,8.00721336]
[1767839174697,2.81617676,137.35,137.31,0.72407903]
[1767839174915,0.64188897,137.35,137.31,0.72407903]
[1767839175099,7.37929707,137.36,137.31,0.72407903]
[1767839175300,2.17428779,137.34,137.31,0.72407903]
[1767839176220,0.63646008,137.35,137.31,0.22407903]
[1767839176433,2.17428779,137.34,137.31,0.22407903]
[1767839177113,2.81074787,137.35,137.31,0.22407903]
[1767839177310,2.17428779,137.34,137.31,0.22407903]
[1767839179518,0.63646008,137.35,137.31,0.22407903]
[1767839179721,2.17428779,137.34,137.31,0.22407903]
[1767839183529,0.63608922,137.33,137.3,7.28328785]
[1767839183824,2.17428779,137.32,137.29,0.72407903]
[1767839184817,2.17428779,137.32,137.29,8.00785438]
[1767839185131,0.63608922,137.33,137.3,0.72407903]
[1767839185621,2.81037701,137.33,137.3,0.72407903]
[1767839187216,2.17428779,137.32,137.3,0.72407903]
[1767839187722,0.63608922,137.33,137.3,0.72407903]
[1767839187928,2.81037701,137.33,137.3,0.72407903]
[1767839189228,2.17428779,137.34,137.3,8.00726939]
[1767839189430,0.66596358,137.35,137.31,0.72407903]
[1767839189609,2.8392934,137.33,137.3,8.00726939]
[1767839189930,2.8392934,137.33,137.3,0.72407903]
[1767839190116,2.17428779,137.32,137.3,0.72407903]
[1767839190718,2.8392934,137.33,137.3,0.72407903]
[1767839191929,0.66500561,137.33,137.3,0.72407903]
[1767839192124,2.8392934,137.33,137.3,0.72407903]
[1767839192316,2.17428779,137.32,137.3,0.72407903]
[1767839192637,0.57111452,137.32,137.28,8.00274247]
[1767839192833,2.74540231,137.32,137.29,0.71856332]
[1767839193132,0.57111452,137.32,137.29,8.00238474]
[1767839193435,2.74540231,137.32,137.29,8.00238474]
[1767839193630,0.2,137.37,137.33,0.71856332]
[1767839193837,3.06416616,137.37,137.33,13.3]
[1767839194140,3.06416616,137.37,137.32,21.58480948]
[1767839194312,3.06416616,137.37,137.33,0.71856332]
[1767839194509,2.86416616,137.35,137.31,8.00116777]
[1767839195828,2.17428779,137.34,137.31,8.00116777]
[1767839196420,0.68987837,137.35,137.32,8.00079557]